[Event "Top 12 FRA-chT 2017"]
[Site "Chartres"]
[Date "2017.05.23"]
[Round "6"]
[White "Le Borgne, Pierre"]
[Black "Grollemund, Bertrand"]
[Result "0-1"]
[ECO "B06"]
[WhiteElo "2234"]
[BlackElo "2182"]
[Annotator "NA RC"]
[PlyCount "72"]
[EventDate "2017.??.??"]
[EventType "team-tourn"]
[EventCountry "FRA"]
[SourceTitle "playchess.com"]
[Source "ChessBase"]
[SourceQuality "1"]
[WhiteTeam "Lisieux"]
[BlackTeam "Montpellier"]
[TimeControl "40/5400+30:1800+30"]

1. e4 {[%emt 0:00:00]} g6 {[%emt 0:03:16]} 2. d4 {[%emt 0:00:00]} Bg7 {[%emt 0:00:07]} 3. Nc3 {[%emt 0:00:06]} d6 {[%emt 0:00:28]} 4. Be3 {[%emt 0:01:09]} a6 {[%emt 0:00:14]} 5. Qd2 {[%emt 0:01:02]} Nd7 {[%emt 0:01:36]} 6. O-O-O {[%emt 0:00:32]} b5 {[%emt 0:00:21]} 7. h4 {[%emt 0:00:54] B06: Modern Defence} h6 {[%emt 0:06:32]} 8. f3 {[%emt 0:14:47]} c6 {[%emt 0:07:58]} (8... Bb7 9. Nh3 Rc8 10. e5 dxe5 11. dxe5 Bxe5 12. h5 g5 13. f4 gxf4 14. Bxf4 Bd6 15. Nf2 {1-0 (35) Dubov,D (2661)-Malakhov,V (2694) Moscow 2015}) 9. g4 {[%emt 0:11:27]} Nb6 {[%emt 0:01:15]} 10. Nh3 {[%emt 0:04:13]} b4 $146 {[%emt 0:09:16]} ({Predecessor:} 10... a5 11. Nf2 a4 12. f4 Ba6 13. Nb1 Nf6 14. c3 Qb8 {1-0 (69) Hvenekilde,J (2267)-Helin,M (2066) Copenhagen 2001}) 11. Nb1 {[%emt 0:02:09]} a5 $1 {[%emt 0:11:01]} 12. a3 {[%emt 0:04:06]} Ba6 {[%emt 0:14:22]} 13. Bxa6 {[%emt 0:03:38]} ({Don't play} 13. axb4 Bxf1 14. Rhxf1 (14. Rdxf1 Nc4 $15) 14... Nc4 $11) 13... Rxa6 {[%emt 0:00:10]} 14. axb4 {[%emt 0:02:03]} Qa8 {[%emt 0:07:31]} 15. e5 {[%emt 0:19:47]} (15. Nf4 $14) 15... Nc4 {[%emt 0:05:28]} (15... axb4 $11 {remains equal.} 16. exd6 Nd5) 16. Qd3 {[%emt 0:02:45]} d5 {[%emt 0:02:32]} (16... Nxe3 $11 {and Black has nothing to worry.} 17. Qxe3 axb4) 17. e6 {[%emt 0:02:33]} axb4 {[%emt 0:02:58]} 18. exf7+ {[%emt 0:04:04]} Kxf7 {[%emt 0:00:31]} 19. b3 $11 {[%emt 0:06:30]} (19. Rhe1 $14) 19... Na3 {[%emt 0:13:35]} 20. Nxa3 {[%emt 0:00:51]} bxa3 {[%emt 0:00:08]} 21. Kb1 {[%emt 0:01:31]} a2+ {[%emt 0:01:43]} 22. Ka1 {[%emt 0:00:24]} c5 {[%emt 0:00:49]} 23. c3 {[%emt 0:00:25]} Rb6 {[%emt 0:02:18]} 24. Nf4 {[%emt 0:01:13]} c4 {[%emt 0:05:18]} 25. bxc4 {[%emt 0:00:50]} Qa3 {[%emt 0:00:11]} 26. Rh2 {[%emt 0:00:26]} Nf6 {[%emt 0:01:02]} 27. c5 {[%emt 0:06:48]} Rb1+ {[%emt 0:00:53]} 28. Rxb1 {[%emt 0:00:24]} axb1=Q+ {[%emt 0:00:10]} 29. Kxb1 {[%emt 0:00:12]} Rb8+ {[%emt 0:00:19]} 30. Kc2 {[%emt 0:00:05]} Rb2+ {[%emt 0:01:31]} 31. Kd1 {[%emt 0:00:06]} Rxh2 {[%emt 0:00:15]} 32. Qxg6+ {[%emt 0:00:28]} Kg8 {[%emt 0:00:10]} 33. Ne6 {[%emt 0:03:08]} Qb3+ {[%emt 0:00:19]} 34. Ke1 {[%emt 0:00:18]} Qxc3+ {[%emt 0:00:25]} 35. Kd1 {[%emt 0:00:04]} Qb3+ {[%emt 0:01:10]} 36. Kc1 {[%emt 0:00:17]} Qxe3+ 0-1

[Event "Top 12 FRA-chT 2017"]
[Site "Chartres"]
[Date "2017.05.23"]
[Round "6"]
[White "Leconte, Maria"]
[Black "Maisuradze, Nino"]
[Result "1-0"]
[ECO "B40"]
[WhiteElo "2174"]
[BlackElo "2260"]
[Annotator "NA RC"]
[PlyCount "71"]
[EventDate "2017.??.??"]
[EventType "team-tourn"]
[EventCountry "FRA"]
[SourceTitle "playchess.com"]
[Source "ChessBase"]
[SourceQuality "1"]
[WhiteTeam "Saint Quentin"]
[BlackTeam "Bischwiller"]
[TimeControl "40/5400+30:1800+30"]

1. e4 {[%emt 0:00:00]} c5 {[%emt 0:00:10]} 2. Nf3 {[%emt 0:00:00]} e6 {[%emt 0:00:22]} 3. c3 {[%emt 0:00:00]} d5 {[%emt 0:00:17]} 4. exd5 {[%emt 0:00:00]} Qxd5 {[%emt 0:00:02]} 5. d4 {[%emt 0:00:07]} Nf6 {[%emt 0:00:22]} 6. Be3 {[%emt 0:00:05]} cxd4 {[%emt 0:00:03]} 7. cxd4 {[%emt 0:00:05]} Nc6 {[%emt 0:00:16]} 8. Nc3 {[%emt 0:00:08]} Qd6 {[%emt 0:00:11]} 9. a3 {[%emt 0:01:28]} Be7 {[%emt 0:00:18]} 10. Bd3 {[%emt 0:00:08]} O-O {[%emt 0:00:11]} 11. O-O {[%emt 0:00:07]} b6 {[%emt 0:05:17]} 12. Qe2 {[%emt 0:00:22]} Bb7 {[%emt 0:00:23]} 13. Rad1 {[%emt 0:00:07]} Rac8 {[%emt 0:04:13]} 14. Rfe1 {[%emt 0:00:45]} Rfd8 {[%emt 0:02:39] Bg} 15. Bg5 {[%emt 0:01:11] B22: Sicilian: 2 c3} Qb8 {[%emt 0:44:21]} 16. Bb1 {[%emt 0:02:27]} a6 $2 $146 {[%emt 0:12:02] [#]} (16... Re8 $16 {was called for.}) ({Predecessor:} 16... Nd5 17. Qe4 g6 18. Qh4 Qc7 19. Ba2 Nxc3 20. bxc3 Bxa3 21. Bxd8 Nxd8 22. d5 exd5 23. Re8+ Bf8 24. Qh6 Ne6 25. Ng5 {1-0 (25) Zumsande,M (2403)-Mas,H (2391) Haarlem 2009}) 17. d5 $1 {[%emt 0:07:14]} exd5 {[%emt 0:03:48]} 18. Bxf6 $2 {[%emt 0:00:39]} (18. Qd3 $18 {is more deadly.} g6 {[#]} 19. Rxe7 $1 {[%mdl 512]} Nxe7 20. Bxf6) 18... Bxf6 {[%emt 0:00:17]} 19. Nxd5 {[%emt 0:00:39]} Qd6 {[%emt 0:18:33]} 20. Nxf6+ {[%emt 0:09:25]} Qxf6 {[%emt 0:00:11]} 21. Rxd8+ {[%emt 0:00:05]} Qxd8 {[%emt 0:00:06]} 22. Ng5 {[%emt 0:00:30]} g6 {[%emt 0:01:16]} 23. h4 {[%emt 0:15:14]} Nd4 {[%emt 0:00:21]} 24. Qg4 {[%emt 0:00:49]} h5 {[%emt 0:02:48] [#]} 25. Qf4 $1 {[%emt 0:04:13]} f5 $2 {[%emt 0:02:59]} (25... Qd5 $16 26. Be4 Qc4) 26. Ba2+ {[%emt 0:03:46]} Bd5 {[%emt 0:00:10]} 27. Re8+ {[%emt 0:02:56]} Qxe8 {[%emt 0:00:01]} 28. Bxd5+ {[%emt 0:00:06]} Kf8 {[%emt 0:01:51]} 29. Qxd4 {[%emt 0:00:06]} Qe1+ {[%emt 0:00:52]} 30. Kh2 {[%emt 0:00:05]} Ke7 $18 {[%emt 0:00:18]} 31. Nf3 {[%emt 0:07:15]} Qc1 {[%emt 0:00:44]} 32. Qe5+ {[%emt 0:01:57]} Kf8 {[%emt 0:00:33]} 33. Qf6+ {[%emt 0:03:25]} Ke8 {[%emt 0:00:01]} 34. Bf7+ {[%emt 0:00:22]} Kd7 {[%emt 0:00:07]} 35. Be6+ {[%emt 0:02:28]} Kc7 {[%emt 0:00:04]} 36. Qe5+ {[%emt 0:00:14]} 1-0

[Event "Top 12 FRA-chT 2017"]
[Site "Chartres"]
[Date "2017.05.23"]
[Round "6"]
[White "Rodon, Gurvan"]
[Black "Ouakhir, Pierre Mehdi"]
[Result "1/2-1/2"]
[ECO "D45"]
[WhiteElo "2047"]
[BlackElo "2277"]
[Annotator "NA RC"]
[PlyCount "58"]
[EventDate "2017.??.??"]
[EventType "team-tourn"]
[EventCountry "FRA"]
[SourceTitle "playchess.com"]
[Source "ChessBase"]
[SourceQuality "1"]
[WhiteTeam "Lisieux"]
[BlackTeam "Montpellier"]
[TimeControl "40/5400+30:1800+30"]

{[%evp 19,57,-2,15,0,9,8,16,6,20,-21,-39,-27,32767,32767,9,32767,11,8,74,60,58,32767,32767,-18,0,32767,32767,32767,0,4,32767,0,32767,32767,32767,32767,32767,32767,31,41]} 1. d4 {[%emt 0:00:00]} d5 {[%emt 0:01:28]} 2. c4 {[%emt 0:00:00]} e6 {[%emt 0:00:10]} 3. Nc3 {[%emt 0:00:00]} c6 {[%emt 0:00:04]} 4. e3 {[%emt 0:01:28]} Nf6 {[%emt 0:00:41]} 5. Nf3 {[%emt 0:00:09]} Nbd7 {[%emt 0:00:04]} 6. Qc2 {[%emt 0:01:17]} Bd6 {[%emt 0:00:29]} 7. Be2 {[%emt 0:01:30]} O-O {[%emt 0:00:46]} 8. O-O {[%emt 0:00:10]} Re8 {[%emt 0:02:13]} 9. Rd1 {[%emt 0:03:42]} Qe7 {[%emt 0:01:27]} 10. h3 {[%emt 0:02:22]} h6 {[%emt 0:13:12]} 11. a3 {[%emt 0:02:47]} dxc4 12. Bxc4 {[%emt 0:00:24]} e5 {[%emt 0:03:07]} 13. Nh4 {[%emt 0:05:10]} Nf8 {[%emt 0:04:44] D45: Semi-Slav: 5 e3} 14. Nf5 {[%emt 0:02:52]} (14. dxe5 Bxe5 15. Bd2 Bc7 16. Nf5 Qe5 17. Ng3 Be6 18. Bd3 Rad8 19. Nce2 Bb6 20. b4 Ng6 21. a4 {1-0 (44) Karpov,A (2770)-Lautier,J (2645) Dortmund 1995}) 14... Bxf5 $1 {[%emt 0:00:10]} 15. Qxf5 {[%emt 0:00:07] LiveBook: 9 Games} e4 {[%emt 0:00:20]} 16. h4 {[%emt 0:08:14] [#]} Qd7 $146 {[%emt 0:11:30]} ({Predecessor:} 16... g6 17. Qh3 Rad8 18. Bd2 N8d7 19. Rac1 Nb6 20. Be2 Nbd5 21. Nxd5 Nxd5 {0-1 (34) Kononenko,T (2378)-Korneev,O (2645) Seville 2008}) 17. Qxd7 {[%emt 0:03:25]} N8xd7 {[%emt 0:00:22]} 18. b4 {[%emt 0:13:05]} b5 {[%emt 0:10:12]} (18... a6 $11) 19. Bf1 {[%emt 0:08:45]} Nb6 {[%emt 0:10:29]} 20. d5 {[%emt 0:11:26]} Be5 {[%emt 0:00:53]} 21. Bb2 {[%emt 0:00:54]} Nfxd5 {[%emt 0:10:42]} (21... Bxc3 $5 22. Bxc3 Nfxd5 $15) 22. Nxd5 {[%emt 0:01:52]} Bxb2 {[%emt 0:00:28]} 23. Nxb6 {[%emt 0:06:06]} axb6 {[%emt 0:02:30]} 24. Ra2 $1 {[%emt 0:00:12]} Bf6 {[%emt 0:02:42]} 25. Rc1 {[%emt 0:01:00]} Re6 {[%emt 0:11:01]} 26. Rac2 {[%emt 0:06:54]} Rxa3 {[%emt 0:05:13]} 27. Rxc6 {[%emt 0:00:19]} Rxc6 {[%emt 0:04:38]} 28. Rxc6 {[%emt 0:00:08]} Bc3 {[%emt 0:01:08]} 29. Rxb6 $14 {[%emt 0:00:42]} Bxb4 {[%emt 0:01:10]} 1/2-1/2

[Event "Top 12 FRA-chT 2017"]
[Site "Chartres"]
[Date "2017.05.24"]
[Round "7"]
[White "Boudiba, Mahfoud"]
[Black "Godard, Maxence"]
[Result "1-0"]
[ECO "E46"]
[WhiteElo "2409"]
[BlackElo "2329"]
[Annotator "NA"]
[PlyCount "94"]
[EventDate "2017.??.??"]
[EventType "team-tourn"]
[EventCountry "FRA"]
[SourceTitle "playchess.com"]
[Source "ChessBase"]
[SourceQuality "1"]
[WhiteTeam "Tremblay-En-France"]
[BlackTeam "Lisieux"]
[TimeControl "40/5400+30:1800+30"]

1. d4 {[%emt 0:02:44]} Nf6 {[%emt 0:00:35]} 2. c4 {[%emt 0:00:06]} e6 {[%emt 0:00:44]} 3. Nc3 {[%emt 0:01:30]} Bb4 {[%emt 0:00:20]} 4. e3 {[%emt 0:00:06]} O-O {[%emt 0:00:19]} 5. Nge2 {[%emt 0:00:07]} d5 {[%emt 0:00:43]} 6. a3 {[%emt 0:00:14]} Be7 {[%emt 0:00:36]} 7. Nf4 {[%emt 0:00:28]} c6 {[%emt 0:02:41]} 8. Bd3 {[%emt 0:04:06]} Nbd7 {[%emt 0:04:14]} 9. cxd5 {[%emt 0:00:48]} exd5 {[%emt 0:03:58] LiveBook: 60 Games} 10. O-O {[%emt 0:00:12] E46: Nimzo-Indian: Rubinstein: 4 e3 0-0 5 Ne2 without early Bd3} Nb6 {[%emt 0:04:43]} (10... Re8 11. f3 Nf8 12. Bc2 Ne6 13. e4 dxe4 14. Nxe6 Bxe6 15. fxe4 c5 16. e5 Nd5 17. Qd3 g6 18. Ba4 cxd4 {0-1 (50) Jones,G (2648)-Almasi,Z (2710) Warsaw 2013}) 11. Bc2 {[%emt 0:09:53]} Re8 {[%emt 0:08:45]} 12. f3 {[%emt 0:01:13]} c5 {[%emt 0:03:35]} 13. Re1 $146 {[%emt 0:08:10]} ({Predecessor:} 13. Bb3 Bf5 14. dxc5 Bxc5 15. Nfxd5 Nbxd5 16. Nxd5 Nxd5 17. Qxd5 Qxd5 18. Bxd5 Bxe3+ 19. Bxe3 Rxe3 20. Rfe1 Rae8 21. Kf2 Rxe1 22. Rxe1 Rxe1 {½-½ (22) Wiley,T (2264)-Gschnitzer,O (2440) Deizisau 2013}) 13... Bd6 {[%emt 0:03:13]} 14. dxc5 {[%emt 0:03:41]} Bxc5 {[%emt 0:00:09]} 15. Kh1 {[%emt 0:11:37]} d4 {[%emt 0:12:38]} 16. b4 {[%emt 0:04:57]} Bf8 {[%emt 0:01:30]} 17. exd4 {[%emt 0:11:54]} Qxd4 {[%emt 0:02:50]} 18. Qxd4 {[%emt 0:08:48]} Rxe1+ {[%emt 0:00:12]} 19. Qg1 {[%emt 0:00:07]} Rxg1+ {[%emt 0:00:08]} 20. Kxg1 {[%emt 0:00:09]} a5 {[%emt 0:03:37]} 21. Rb1 $11 {[%emt 0:01:47]} axb4 {[%emt 0:02:36]} 22. axb4 {[%emt 0:00:14]} Bd7 {[%emt 0:00:23]} 23. Be3 {[%emt 0:07:38]} Rc8 {[%emt 0:05:55]} 24. Bxb6 {[%emt 0:07:58]} Rxc3 {[%emt 0:00:24]} 25. Bb3 {[%emt 0:01:33]} Bxb4 {[%emt 0:02:56]} 26. Bxf7+ {[%emt 0:01:22]} Kxf7 {[%emt 0:00:10]} 27. Rxb4 {[%emt 0:00:04]} Rc2 {[%emt 0:01:20]} 28. Rb1 {[%emt 0:02:26]} Bc6 {[%emt 0:01:30]} 29. Re1 {[%emt 0:00:42]} Nd7 {[%emt 0:01:08]} 30. Bd8 {[%emt 0:00:20]} g5 {[%emt 0:01:46]} 31. Re7+ {[%emt 0:00:20]} Kg8 {[%emt 0:01:45]} 32. Re8+ {[%emt 0:02:53]} Kf7 {[%emt 0:01:25]} 33. Re7+ {[%emt 0:00:08]} Kg8 {[%emt 0:00:07]} 34. Ne6 {[%emt 0:01:36]} h6 {[%emt 0:02:33]} 35. Nd4 {[%emt 0:00:53]} Rd2 {[%emt 0:00:14]} 36. Nf5 {[%emt 0:00:44]} g4 {[%emt 0:01:56]} 37. Rg7+ {[%emt 0:01:19]} Kf8 {[%emt 0:01:14]} 38. Be7+ {[%emt 0:00:11]} Ke8 {[%emt 0:00:08]} 39. Nd6+ {[%emt 0:00:46]} Rxd6 {[%emt 0:00:28]} 40. Bxd6 {[%emt 0:00:05]} gxf3 {[%emt 0:30:09]} 41. g4 {[%emt 0:31:11]} Nf6 {[%emt 0:00:34]} 42. Bc5 {[%emt 0:02:46]} Ne4 {[%emt 0:05:47]} 43. Re7+ {[%emt 0:00:00]} Kd8 {[%emt 0:00:00]} 44. Re5 {[%emt 0:00:00]} Kd7 {[%emt 0:00:00]} 45. Be3 {[%emt 0:00:00]} b5 {[%emt 0:00:00]} 46. Rf5 {[%emt 0:00:00]} Nd6 {[%emt 0:00:00]} 47. Rf6 {[%emt 0:00:00]} b4 {[%emt 0:00:00]} 1-0

[Event "Top 12 FRA-chT 2017"]
[Site "Chartres"]
[Date "2017.05.24"]
[Round "7"]
[White "Bollengier, Andreea"]
[Black "De Seroux, Camille"]
[Result "1/2-1/2"]
[ECO "A15"]
[WhiteElo "2234"]
[BlackElo "2117"]
[Annotator "NA"]
[PlyCount "113"]
[EventDate "2017.??.??"]
[EventType "team-tourn"]
[EventCountry "FRA"]
[SourceTitle "playchess.com"]
[Source "ChessBase"]
[SourceQuality "1"]
[WhiteTeam "Nice Alekhine"]
[BlackTeam "Grasse Echecs"]
[TimeControl "40/5400+30:1800+30"]

1. c4 {[%emt 0:00:00]} Nf6 {[%emt 0:00:11]} 2. g3 {[%emt 0:00:00]} g6 {[%emt 0:00:29]} 3. Bg2 {[%emt 0:00:00]} Bg7 {[%emt 0:00:09]} 4. Nf3 {[%emt 0:00:38]} O-O {[%emt 0:00:27]} 5. d4 {[%emt 0:00:53]} d6 {[%emt 0:03:06]} 6. O-O {[%emt 0:00:56]} c6 {[%emt 0:00:50]} 7. h3 {[%emt 0:00:46]} Nbd7 {[%emt 0:18:27]} 8. Qc2 {[%emt 0:01:37]} e5 {[%emt 0:03:56] LiveBook: 3 Games} 9. Rd1 {[%emt 0:01:16]} e4 {[%emt 0:03:50]} 10. Nh2 $15 {[%emt 0:10:36]} d5 {[%emt 0:04:45]} 11. cxd5 {[%emt 0:01:28]} cxd5 {[%emt 0:00:10]} 12. Nc3 {[%emt 0:00:48]} Nb6 {[%emt 0:03:38]} 13. a4 {[%emt 0:05:04]} Be6 {[%emt 0:04:33]} 14. Nf1 {[%emt 0:02:59]} Rc8 {[%emt 0:02:12]} 15. a5 {[%emt 0:21:08]} Nc4 {[%emt 0:00:36]} 16. a6 {[%emt 0:00:37]} Qd7 {[%emt 0:06:28]} 17. axb7 {[%emt 0:00:45]} Qxb7 {[%emt 0:00:17]} 18. Ne3 {[%emt 0:16:43]} Nd7 {[%emt 0:05:39]} 19. Nxc4 {[%emt 0:02:38]} Rxc4 {[%emt 0:00:29]} 20. Ra4 {[%emt 0:02:38]} Rfc8 {[%emt 0:02:40]} 21. e3 {[%emt 0:01:15]} Nb6 {[%emt 0:06:59]} 22. Ra2 {[%emt 0:01:48]} Bd7 {[%emt 0:13:09]} 23. Bd2 {[%emt 0:01:59]} Na4 {[%emt 0:04:25]} 24. Rda1 {[%emt 0:01:06]} Rb4 {[%emt 0:06:13]} 25. Bf1 {[%emt 0:11:09]} Bf8 {[%emt 0:07:18]} 26. Rxa4 {[%emt 0:03:09]} Bxa4 {[%emt 0:01:13]} 27. Rxa4 {[%emt 0:00:04]} Rxa4 {[%emt 0:01:08]} 28. Qxa4 {[%emt 0:00:10]} Qxb2 {[%emt 0:00:15]} 29. Be1 {[%emt 0:07:28]} Rxc3 {[%emt 0:00:52]} 30. Bxc3 {[%emt 0:00:04]} Qxc3 {[%emt 0:00:03]} 31. Qxa7 {[%emt 0:00:09]} Qc6 {[%emt 0:00:48]} 32. Qb8 {[%emt 0:00:53]} Qd6 {[%emt 0:00:34]} 33. Qxd6 {[%emt 0:00:25]} Bxd6 {[%emt 0:00:05]} 34. Bb5 {[%emt 0:00:02]} f5 {[%emt 0:00:46]} 35. Bc6 {[%emt 0:00:03]} Kg7 {[%emt 0:00:35]} 36. Bxd5 {[%emt 0:00:05]} Kf6 {[%emt 0:00:32]} 37. Kg2 {[%emt 0:02:55]} h5 {[%emt 0:00:38]} 38. Bc6 {[%emt 0:01:23]} Kg5 {[%emt 0:00:28]} 39. Be8 {[%emt 0:01:26]} Bb4 {[%emt 0:00:18]} 40. Bf7 {[%emt 0:01:36]} Kf6 {[%emt 0:30:22]} 41. Be8 {[%emt 0:30:05]} Kg5 {[%emt 0:00:06]} 42. f3 {[%emt 0:00:00]} exf3+ {[%emt 0:00:00]} 43. Kxf3 {[%emt 0:00:00]} Bd6 {[%emt 0:00:00]} 44. Bf7 {[%emt 0:00:00]} Kf6 {[%emt 0:00:00]} 45. Be8 {[%emt 0:00:00]} Kg5 {[%emt 0:00:00]} 46. Bd7 {[%emt 0:00:00]} Kf6 {[%emt 0:00:00]} 47. g4 {[%emt 0:00:00]} hxg4+ {[%emt 0:00:00]} 48. hxg4 {[%emt 0:00:00]} Bf8 {[%emt 0:00:00]} 49. e4 {[%emt 0:00:00]} fxe4+ {[%emt 0:00:00]} 50. Kxe4 {[%emt 0:00:00]} Ke7 {[%emt 0:00:00]} 51. Bc8 {[%emt 0:00:00]} Kd6 {[%emt 0:00:00]} 52. Ba6 {[%emt 0:00:00]} Be7 {[%emt 0:00:00]} 53. Bc4 {[%emt 0:00:00]} Bd8 {[%emt 0:00:00]} 54. Bg8 {[%emt 0:00:00]} g5 {[%emt 0:00:00]} 55. Kf5 {[%emt 0:00:00]} Bb6 {[%emt 0:00:23]} 56. d5 {[%emt 0:00:00]} Be3 {[%emt 0:00:09]} 57. Ke4 {Ke5+} 1/2-1/2

[Event "Top 12 FRA-chT 2017"]
[Site "Chartres"]
[Date "2017.05.24"]
[Round "7"]
[White "Marchadour, Emilie"]
[Black "Aflalo, Sophie"]
[Result "0-1"]
[ECO "B33"]
[WhiteElo "2097"]
[BlackElo "2135"]
[Annotator "NA"]
[PlyCount "96"]
[EventDate "2017.??.??"]
[EventType "team-tourn"]
[EventCountry "FRA"]
[SourceTitle "playchess.com"]
[Source "ChessBase"]
[SourceQuality "1"]
[WhiteTeam "Lisieux"]
[BlackTeam "Tremblay-En-France"]
[TimeControl "40/5400+30:1800+30"]

1. e4 {[%emt 0:00:00]} c5 {[%emt 0:00:35]} 2. Nf3 {[%emt 0:00:00]} Nc6 {[%emt 0:00:28]} 3. d4 {[%emt 0:00:00]} cxd4 {[%emt 0:00:04]} 4. Nxd4 {[%emt 0:00:00]} Nf6 {[%emt 0:00:03]} 5. Nc3 {[%emt 0:00:56]} e5 {[%emt 0:00:34]} 6. Ndb5 {[%emt 0:01:35]} d6 {[%emt 0:00:05]} 7. Bg5 {[%emt 0:00:18]} a6 {[%emt 0:00:04]} 8. Na3 {[%emt 0:00:10]} b5 {[%emt 0:00:08]} 9. Nd5 {[%emt 0:00:58]} Be7 {[%emt 0:00:07]} 10. Bxf6 {[%emt 0:06:07]} Bxf6 {[%emt 0:00:12]} 11. c4 {[%emt 0:00:17]} b4 {[%emt 0:00:08]} 12. Nc2 {[%emt 0:00:08]} O-O {[%emt 0:00:29]} 13. Bd3 {[%emt 0:14:48]} Bg5 {[%emt 0:02:25]} 14. O-O {[%emt 0:04:06]} (14. h4 $5 Bh6 15. Qh5 $11) 14... a5 {[%emt 0:06:05]} 15. Nce3 {[%emt 0:01:14]} Nd4 $11 {[%emt 0:01:27]} 16. f4 {[%emt 0:09:27]} exf4 {[%emt 0:07:19]} 17. Nxf4 {[%emt 0:02:27]} Nc6 {[%emt 0:13:33]} 18. Kh1 {[%emt 0:09:49]} Ne5 {[%emt 0:01:07]} 19. Nfd5 {[%emt 0:04:07]} Be6 {[%emt 0:03:16]} 20. Be2 {[%emt 0:01:00]} Rb8 {[%emt 0:02:14]} 21. Nf5 {[%emt 0:05:23]} Kh8 {[%emt 0:03:25]} 22. Qd4 {[%emt 0:03:26]} g6 {[%emt 0:01:21]} 23. Nfe3 {[%emt 0:00:24]} Bh6 {[%emt 0:14:14]} 24. Rad1 {[%emt 0:04:48]} Bg7 {[%emt 0:02:57]} 25. Qd2 {[%emt 0:00:07]} Qc8 {[%emt 0:01:20]} 26. b3 {[%emt 0:09:29]} Qc5 {[%emt 0:01:18]} 27. Qe1 {[%emt 0:02:12]} Rb7 {[%emt 0:11:11]} 28. Qh4 {[%emt 0:00:27]} a4 {[%emt 0:08:30]} 29. Nf6 {[%emt 0:05:19]} h6 {[%emt 0:01:18]} 30. Ned5 {[%emt 0:00:30]} axb3 {[%emt 0:00:37]} 31. axb3 {[%emt 0:00:05]} Ra7 {[%emt 0:00:56]} 32. Nf4 {[%emt 0:03:38]} g5 {[%emt 0:00:51]} 33. Nxe6 {[%emt 0:00:41]} fxe6 {[%emt 0:01:10]} 34. Qh3 {[%emt 0:02:30]} Raf7 {[%emt 0:01:18]} 35. Ng4 {[%emt 0:02:54]} Rxf1+ {[%emt 0:05:20]} 36. Rxf1 {[%emt 0:00:05]} Rxf1+ {[%emt 0:00:30]} 37. Bxf1 {[%emt 0:00:06]} Nxg4 {[%emt 0:00:43]} 38. Qxg4 {[%emt 0:00:09]} Qf2 {[%emt 0:03:10]} 39. Qf3 {[%emt 0:01:25]} Qc2 {[%emt 0:02:27]} 40. e5 {[%emt 0:06:01]} dxe5 {[%emt 0:31:31]} 41. Qd3 {[%emt 0:30:59]} Qf2 {[%emt 0:00:00]} 42. Qf3 {[%emt 0:00:00]} Qe1 {[%emt 0:00:00]} 43. Qe2 {[%emt 0:00:00]} Qc1 {[%emt 0:00:00]} 44. g3 {[%emt 0:00:00]} e4 {[%emt 0:00:00]} 45. Kg2 {[%emt 0:00:00]} e3 {[%emt 0:00:00]} 46. Qf3 {[%emt 0:00:00]} Qd2+ {[%emt 0:00:00]} 47. Kh3 {[%emt 0:00:00]} Qd4 {[%emt 0:00:00]} 48. Bg2 {[%emt 0:00:00]} g4+ 0-1

[Event "Top 12 FRA-chT 2017"]
[Site "Chartres"]
[Date "2017.05.25"]
[Round "8"]
[White "Vitoux, Colomban"]
[Black "Moucheroud, Jeremy"]
[Result "1-0"]
[ECO "A05"]
[WhiteElo "2382"]
[BlackElo "2197"]
[Annotator "NA"]
[PlyCount "79"]
[EventDate "2017.??.??"]
[EventType "team-tourn"]
[EventCountry "FRA"]
[SourceTitle "playchess.com"]
[Source "ChessBase"]
[SourceQuality "1"]
[WhiteTeam "Strasbourg"]
[BlackTeam "Montpellier"]
[TimeControl "40/5400+30:1800+30"]

1. Nf3 {[%emt 0:00:00]} Nf6 {[%emt 0:02:04]} 2. g3 {[%emt 0:01:07]} d5 {[%emt 0:00:41]} 3. c4 {[%emt 0:01:39]} d4 {[%emt 0:06:28]} 4. b4 {[%emt 0:01:32]} a5 {[%emt 0:08:21]} 5. b5 {[%emt 0:04:04]} c5 {[%emt 0:00:30]} 6. bxc6 {[%emt 0:00:30]} Nxc6 {[%emt 0:00:30]} 7. d3 {[%emt 0:00:30]} e5 {[%emt 0:00:30]} 8. Bg2 {[%emt 0:00:30]} Bb4+ {[%emt 0:00:30]} 9. Bd2 {[%emt 0:00:30]} Bc5 {[%emt 0:00:30]} 10. O-O {[%emt 0:00:30]} O-O {[%emt 0:21:51]} 11. Bc1 {[%emt 0:23:45]} Qe7 {[%emt 0:04:07]} 12. Nbd2 {[%emt 0:04:05]} h6 {[%emt 0:07:11]} 13. Rb1 {[%emt 0:05:08]} a4 {[%emt 0:07:59]} 14. Ne1 {[%emt 0:03:45]} Nb4 {[%emt 0:07:54]} 15. Ra1 {[%emt 0:01:27]} Ra7 {[%emt 0:06:33]} 16. Nc2 {[%emt 0:00:50]} Nxc2 {[%emt 0:02:34]} 17. Qxc2 {[%emt 0:00:02]} Bd7 {[%emt 0:01:04]} 18. Rb1 {[%emt 0:15:04]} Bc6 {[%emt 0:02:02]} 19. Bxc6 {[%emt 0:07:46]} bxc6 {[%emt 0:00:02]} 20. Nf3 {[%emt 0:00:39]} Re8 {[%emt 0:11:00]} 21. Bd2 {[%emt 0:10:49]} e4 {[%emt 0:02:35]} 22. dxe4 {[%emt 0:01:04]} Nxe4 {[%emt 0:00:02]} 23. Qd3 {[%emt 0:00:17]} Rd7 {[%emt 0:01:12]} 24. Rfd1 {[%emt 0:10:23]} Red8 {[%emt 0:01:55]} 25. Ba5 {[%emt 0:00:26]} Ra8 {[%emt 0:00:58]} 26. Be1 {[%emt 0:00:03]} Rdd8 {[%emt 0:00:59]} 27. Kg2 {[%emt 0:01:18]} a3 {[%emt 0:01:14]} 28. Qc2 {[%emt 0:01:21]} Qe6 {[%emt 0:00:46]} 29. Rb3 {[%emt 0:01:50]} Ra4 {[%emt 0:00:51]} 30. Rc1 {[%emt 0:00:51]} Nd6 {[%emt 0:01:16]} 31. Nd2 {[%emt 0:02:51]} Qxe2 {[%emt 0:00:33]} 32. Rd3 {[%emt 0:00:22]} Raa8 {[%emt 0:01:02]} 33. Nb3 {[%emt 0:00:08]} Qe5 {[%emt 0:00:35]} 34. Bd2 {[%emt 0:00:56]} Nf5 {[%emt 0:00:38]} 35. Re1 {[%emt 0:00:27]} Qd6 {[%emt 0:00:06]} 36. Bf4 {[%emt 0:00:12]} Qf8 {[%emt 0:00:29]} 37. Re5 {[%emt 0:00:48]} Nh4+ {[%emt 0:00:44]} 38. gxh4 {[%emt 0:00:07]} Bd6 {[%emt 0:00:03]} 39. Re4 {[%emt 0:00:28]} f5 {[%emt 0:00:13]} 40. Rexd4 {[%emt 0:00:43]} 1-0